fUSD/lending_fUSD_20240105
["ID","MTS","AMOUNT","RATE_DAILY","PERIOD"]
[310297956,1704463964944,-500.0,0.00033424,3]
[310297957,1704463964955,-1024.05,0.00033424,3]
[310297958,1704463964965,-535.98,0.00033424,3]
[310297959,1704463964976,-20552.87,0.00033424,3]
[310297960,1704463964988,-732.24,0.00033424,3]
[310297961,1704463964999,-764.89,0.00033424,3]
[310297962,1704463965011,-1384.47,0.00033424,3]
[310297963,1704463965022,-2343.7,0.00033424,3]
[310297964,1704463965034,-500.0,0.00033424,3]
[310297965,1704463965046,-855.82,0.00033424,3]
[310297966,1704463965057,-1443.03,0.00033424,3]
[310297967,1704463965068,-1467.75,0.00033424,3]
[310297968,1704463965078,-2427.76,0.00033424,3]
[310297969,1704463965095,-500.0,0.00033424,3]
[310297970,1704463965106,-500.0,0.00033424,3]
[310297971,1704463965115,-1262.81,0.00033424,3]
[310297972,1704463965126,-976.69,0.00033424,3]
[310297973,1704463965135,-1404.49,0.00033424,3]
[310297974,1704463965146,-963.68,0.00033424,3]
[310297975,1704463965156,-502.15,0.00033424,3]
[310297976,1704463965166,-1710.42,0.00033424,3]
[310297977,1704463965176,-1043.98,0.00033424,3]
[310297978,1704463965186,-500.0,0.00033424,3]
[310297979,1704463965196,-827.77,0.00033424,3]
[310297980,1704463965206,-500.0,0.00033424,3]
[310297981,1704463965216,-670.86,0.00033424,3]
[310297982,1704463965227,-552.27,0.00033424,3]
[310297983,1704463965238,-2031.67,0.00033424,3]
[310297984,1704463965249,-593.61,0.00033424,3]
[310297985,1704463965259,-7439.39,0.00033424,3]
[310297986,1704463965269,-737.13,0.00033424,3]
[310297987,1704463965279,-973.07,0.00033424,3]
[310297988,1704463965289,-563.27,0.00033424,3]
[310297989,1704463965300,-585.98,0.00033424,3]
[310297990,1704463965311,-500.0,0.00033424,3]
[310297991,1704463965321,-500.0,0.00033424,3]
[310297992,1704463965336,-878.72,0.00033424,3]
[310297993,1704463965346,-1022.6,0.00033424,3]
[310297994,1704463965357,-500.0,0.00033424,3]
[310297995,1704463965367,-1959.09,0.00033424,3]
[310297996,1704463965378,-732.57,0.00033424,3]
[310297997,1704463965389,-11053.17,0.00033424,3]
[310297998,1704463965399,-757.66,0.00033424,3]
[310297999,1704463965410,-500.0,0.00033424,3]
[310298000,1704463965421,-511.54,0.00033424,3]
[310298001,1704463965432,-1241.64,0.00033424,3]
[310298002,1704463965443,-3419.36,0.00033424,3]
[310298003,1704463965455,-1092.45,0.00033424,3]
[310298004,1704463965466,-2084.07,0.00033424,3]
[310298005,1704463965477,-558.28,0.00033424,3]
[310298006,1704463965488,-500.0,0.00033424,3]
[310298007,1704463965499,-1946.6,0.00033424,3]
[310298008,1704463965510,-500.0,0.00033424,3]
[310298009,1704463965521,-1013.42,0.00033424,3]
[310298010,1704463965532,-500.0,0.00033424,3]
[310298011,1704463965543,-1212.22,0.00033424,3]
[310298012,1704463965554,-2289.25,0.00033424,3]
[310298013,1704463965564,-2361.2,0.00033424,3]
[310298014,1704463965575,-500.0,0.00033424,3]
[310298015,1704463965588,-500.0,0.00033424,3]
[310298016,1704463965599,-1128.19,0.00033424,3]
[310298017,1704463965612,-702.4,0.00033424,3]
[310298018,1704463965622,-764.39,0.00033424,3]
[310298019,1704463965633,-500.0,0.00033424,3]
[310298020,1704463965643,-517.07,0.00033424,3]
[310298021,1704463965656,-1542.41,0.00033424,3]
[310298022,1704463965666,-1440.35,0.00033424,3]
[310298023,1704463965676,-510.98734849,0.00033424,3]
[310298024,1704463965687,-500.0,0.00033424,3]
[310298025,1704463965698,-715.0,0.00033424,3]
[310298026,1704463965708,-235.74660889,0.00033424,3]
[310298027,1704463965718,-2358.36,0.00033424,3]
[310298028,1704463965729,-1017.07,0.00033424,3]
[310298029,1704463965740,-5040.24,0.00033424,3]
[310298030,1704463965751,-1054.48,0.00033424,3]
[310298031,1704463965761,-500.0,0.00033424,3]
[310298032,1704463965770,-500.0,0.00033424,3]
[310298033,1704463965781,-500.0,0.00033424,3]
[310298034,1704463965792,-915.19,0.00033424,3]
[310298035,1704463965802,-8316.18,0.00033424,3]
[310298036,1704463965814,-1182.97,0.00033424,3]
[310298037,1704463965825,-5436.81,0.00033424,3]
[310298038,1704463965837,-826.79,0.00033424,3]
[310298039,1704463965848,-217.97,0.00033476,2]
[310298040,1704463965858,-150.0,0.00033518,2]
[310298041,1704463965869,-151.42,0.00033582,2]
[310298042,1704463965881,-209.0,0.0003359,2]
[310298043,1704463965891,-173.17,0.00033616,2]
[310298044,1704463965903,-1444.79,0.00033616,3]
[310298045,1704463965914,-947.41,0.00033616,3]
[310298046,1704463965925,-2917.19,0.00033616,3]
[310298047,1704463965936,-1039.42,0.00033616,3]
[310298048,1704463965947,-500.0,0.00033616,3]
[310298049,1704463965958,-588.09,0.00033616,3]
[310298050,1704463965968,-984.84,0.00033616,3]
[310298051,1704463965978,-1577.2,0.00033616,3]
[310298052,1704463965990,-1004.25,0.00033616,3]
[310298053,1704463966003,-500.0,0.00033616,3]
[310298054,1704463966014,-941.19,0.00033616,3]
[310298055,1704463966025,-500.0,0.00033616,3]
[310298056,1704463966036,-500.0,0.00033616,3]
[310298057,1704463966047,-587.5,0.00033616,3]
[310298058,1704463966297,-684.69,0.00033616,3]
[310298059,1704463966308,-500.0,0.00033616,3]
[310298060,1704463966318,-500.0,0.00033616,3]
[310298061,1704463966327,-502.66,0.00033616,3]
[310298062,1704463966338,-1249.93,0.00033616,3]
[310298063,1704463966347,-700.39,0.00033616,3]
[310298064,1704463966357,-960.04,0.00033616,3]
[310298065,1704463966366,-500.0,0.00033616,3]
[310298066,1704463966376,-537.41,0.00033616,3]
[310298067,1704463966385,-667.92,0.00033616,3]
[310298068,1704463966395,-510.05,0.00033616,3]
[310298069,1704463966406,-978.16,0.00033616,3]
[310298070,1704463966415,-500.0,0.00033616,3]
[310298071,1704463966424,-945.97,0.00033616,3]
[310298072,1704463966435,-1019.98,0.00033616,3]
[310298073,1704463966445,-500.0,0.00033616,3]
[310298074,1704463966454,-803.57,0.00033616,3]
[310298075,1704463966464,-889.76,0.00033616,3]
[310298076,1704463966473,-610.92,0.00033616,3]
[310298077,1704463966483,-605.09,0.00033616,3]
[310298078,1704463966493,-500.0,0.00033616,3]
[310298079,1704463966503,-571.57,0.00033616,3]
[310298080,1704463966513,-500.0,0.00033616,3]
[310298081,1704463966523,-522.64540136,0.00033616,3]
[310298082,1704463966533,-500.0,0.00033698,3]
[310298083,1704463966543,-500.0,0.00033698,3]
[310298084,1704463966553,-578.99,0.00033698,3]
[310298085,1704463966563,-570.77,0.00033698,3]
[310298086,1704463966573,-500.0,0.00033698,3]
[310298087,1704463966584,-500.0,0.00033698,3]
[310298088,1704463966595,-500.0,0.00033698,3]
[310298089,1704463966608,-964.18,0.00033698,3]
[310298090,1704463966619,-500.0,0.00033698,3]
[310298091,1704463966628,-500.0,0.00033698,3]
[310298092,1704463966639,-500.0,0.00033698,3]
[310298093,1704463966649,-500.0,0.00033698,3]
[310298094,1704463966661,-345.56138336,0.00033698,3]
[310298095,1704463966670,-500.0,0.00033698,3]
[310298096,1704463966679,-500.0,0.00033698,3]
[310298097,1704463966689,-286.07603069,0.00033698,3]
[310298098,1704463966701,-500.0,0.00033698,3]
[310298099,1704463966712,-500.0,0.00033698,3]
[310298100,1704463966722,-500.0,0.00033698,3]
[310298101,1704463966731,-776.92,0.00033698,3]
[310298102,1704463966740,-500.0,0.00033698,3]
[310298103,1704463966750,-500.0,0.00033698,3]
[310298104,1704463966760,-500.0,0.00033698,3]
[310298105,1704463966770,-500.0,0.00033698,3]
[310298106,1704463966779,-500.0,0.00033698,3]
[310298107,1704463966791,-754.78,0.00033698,3]
[310298108,1704463966801,-608.57,0.00033698,3]
[310298109,1704463966811,-500.0,0.00033698,3]
[310298110,1704463966822,-500.0,0.00033698,3]
[310298111,1704463966832,-500.0,0.00033698,3]
[310298112,1704463966844,-574.49,0.00033698,2]
[310298113,1704463966853,-500.0,0.00033698,3]
[310298114,1704463966863,-597.18,0.00033698,3]
[310298115,1704463966872,-535.87,0.00033698,3]
[310298116,1704463966882,-544.44601656,0.00033698,3]
[310298117,1704463966893,-500.0,0.00033698,3]
[310298118,1704463966903,-500.0,0.00033698,3]
[310298119,1704463966913,-847.71,0.00033698,3]
[310298120,1704463966923,-500.0,0.00033698,2]
[310298121,1704463966932,-500.0,0.00033698,3]
[310298122,1704463966942,-500.0,0.00033698,3]
[310298123,1704463966953,-939.06,0.00033698,3]
[310298124,1704463966962,-500.0,0.00033698,3]
[310298125,1704463966971,-500.0,0.00033698,3]
[310298126,1704463966980,-500.0,0.00033698,3]
[310298127,1704463966990,-500.0,0.00033698,3]
[310298128,1704463966999,-617.42,0.00033698,3]
[310298129,1704463967009,-500.0,0.00033698,3]
[310298130,1704463967018,-763.35,0.00033698,3]
[310298131,1704463967027,-500.0,0.00033698,3]
[310298132,1704463967037,-581.06,0.00033698,3]
[310298133,1704463967047,-533.25,0.00033698,3]
[310298134,1704463967056,-1032.57,0.00033698,3]
[310298135,1704463967066,-500.0,0.00033698,3]
[310298136,1704463967075,-668.81,0.00033698,3]
[310298137,1704463967085,-897.42,0.00033698,3]
[310298138,1704463967094,-610.9,0.00033698,3]
[310298139,1704463967104,-542.23,0.00033698,3]
[310298140,1704463967113,-500.0,0.00033698,3]
[310298141,1704463967123,-500.0,0.00033698,3]
[310298142,1704463967133,-977.28,0.00033698,3]
[310298143,1704463967143,-500.0,0.00033698,3]
[310298144,1704463967152,-564.72,0.00033698,3]
[310298145,1704463967162,-623.13,0.00033698,3]
[310298146,1704463967171,-500.0,0.00033698,3]
[310298147,1704463967181,-660.13,0.00033698,3]
[310298148,1704463967191,-1107.9,0.00033698,3]
[310298149,1704463967200,-500.0,0.00033698,3]
[310298150,1704463967209,-500.0,0.00033698,3]
[310298151,1704463967219,-500.0,0.00033698,3]
[310298152,1704463967229,-500.0,0.00033698,3]
[310298153,1704463967238,-534.02,0.00033698,3]
[310298154,1704463967248,-500.0,0.00033698,3]
[310298155,1704463967258,-1001.59,0.00033698,3]
[310298156,1704463967267,-500.0,0.00033698,3]
[310298157,1704463967277,-500.0,0.00033698,3]
[310298158,1704463967286,-500.0,0.00033698,3]
[310298159,1704463967296,-577.73,0.00033698,3]
[310298160,1704463967306,-500.0,0.00033698,3]
[310298161,1704463967315,-515.35,0.00033698,3]
[310298162,1704463967324,-500.0,0.00033698,3]
[310298163,1704463967333,-528.01,0.00033698,3]
[310298164,1704463967344,-500.0,0.00033698,3]
[310298165,1704463967353,-609.91,0.00033698,3]
[310298166,1704463967363,-3164.14,0.00033698,3]
[310298167,1704463967373,-368.85970522,0.00033698,3]
[310298168,1704463967382,-767.51,0.00033698,3]
[310298169,1704463967392,-345.21207215,0.00033698,3]
[310298170,1704463967401,-572.23,0.00033698,3]
[310298171,1704463967411,-500.0,0.00033698,3]
[310298172,1704463967420,-1043.05,0.00033698,3]
[310298173,1704463967430,-663.96,0.00033698,3]
[310298174,1704463967440,-500.0,0.00033698,3]
[310298175,1704463967450,-969.42,0.00033698,3]
[310298176,1704463967460,-500.0,0.00033698,3]
[310298177,1704463967471,-951.95,0.00033698,3]
[310298178,1704463967481,-500.0,0.00033698,3]
[310298179,1704463967491,-500.0,0.00033698,3]
[310298180,1704463967501,-795.33,0.00033698,3]
[310298181,1704463967511,-585.0,0.00033698,3]
[310298182,1704463967521,-500.0,0.00033698,3]
[310298183,1704463967530,-500.0,0.00033698,3]
[310298184,1704463967540,-535.25,0.00033698,3]
[310298185,1704463967549,-573.11,0.00033698,3]
[310298186,1704463967559,-1278.92,0.00033698,3]
[310298187,1704463967568,-500.0,0.00033698,3]
[310298188,1704463967579,-1115.46,0.00033698,3]
[310298189,1704463967590,-503.15,0.00033698,3]
[310298190,1704463967599,-522.9,0.00033698,3]
[310298191,1704463967609,-500.0,0.00033698,3]
[310298192,1704463967618,-500.0,0.00033698,3]
[310298193,1704463967628,-500.0,0.00033698,3]
[310298194,1704463967638,-898.64,0.00033698,3]
[310298195,1704463967648,-500.0,0.00033698,3]
[310298196,1704463967662,-500.0,0.00033698,3]
[310298197,1704463967671,-2197.46,0.00033698,3]
[310298198,1704463967681,-1050.63,0.00033698,3]
[310298199,1704463967691,-500.0,0.00033698,2]
[310298200,1704463967702,-512.25,0.00033698,3]
[310298201,1704463967712,-500.0,0.00033698,3]
[310298202,1704463967722,-652.42,0.00033698,3]
[310298203,1704463967731,-500.96,0.00033698,3]
[310298204,1704463967740,-500.0,0.00033698,3]
[310298205,1704463967750,-500.0,0.00033698,3]
[310298206,1704463967759,-737.52,0.00033698,3]
[310298207,1704463967769,-500.0,0.00033698,3]
[310298208,1704463967779,-500.0,0.00033698,3]
[310298209,1704463967789,-1408.67,0.00033698,3]
[310298210,1704463967798,-500.0,0.00033698,3]
[310298211,1704463967807,-519.09,0.00033698,3]
[310298212,1704463967816,-500.0,0.00033698,3]
[310298213,1704463967825,-237.91544122,0.00033698,3]
[310298214,1704463967835,-614.6511942,0.00033698,3]
[310298215,1704463967844,-500.0,0.00033698,3]
[310298216,1704463967853,-500.0,0.00033698,3]
[310298217,1704463967862,-1017.17,0.00033698,3]
[310298218,1704463967872,-500.0,0.00033698,3]
[310298219,1704463967881,-500.0,0.00033698,3]
[310298220,1704463967890,-1228.15,0.00033698,3]
[310298221,1704463967899,-500.0,0.00033698,3]
[310298222,1704463967908,-1193.22,0.00033698,3]
[310298223,1704463967918,-500.0,0.00033698,3]
[310298224,1704463967928,-1709.82,0.00033698,3]
[310298225,1704463967936,-500.0,0.00033698,3]
[310298226,1704463967946,-521.26,0.00033698,3]
[310298227,1704463967955,-1009.32,0.00033698,3]
[310298228,1704463967965,-769.11,0.00033698,3]
[310298229,1704463967974,-545.88714799,0.00033698,3]
[310298230,1704463967983,-500.0,0.00033698,3]
[310298231,1704463967992,-952.84,0.00033698,3]
[310298232,1704463968001,-500.0,0.00033698,3]
[310298233,1704463968011,-634.11,0.00033698,3]
[310298234,1704463968020,-1188.9,0.00033698,3]
[310298235,1704463968029,-558.13,0.00033698,3]
[310298236,1704463968039,-773.34,0.00033698,3]
[310298237,1704463968049,-500.0,0.00033698,3]
[310298238,1704463968058,-881.16,0.00033698,3]
[310298239,1704463968067,-243.2536548,0.00033698,3]
[310298240,1704463968075,-500.0,0.00033698,3]
[310298241,1704463968085,-1431.77,0.00033698,3]
[310298242,1704463968094,-798.14,0.00033698,3]
[310298243,1704463968104,-500.0,0.00033698,3]
[310298244,1704463968113,-2061.68,0.00033698,3]
[310298245,1704463968124,-500.0,0.00033698,3]
[310298246,1704463968133,-909.7,0.00033698,3]
[310298247,1704463968142,-500.0,0.00033698,3]
[310298248,1704463968151,-1481.56,0.00033698,3]
[310298249,1704463968161,-267.94336712,0.00033698,3]
[310298250,1704463968170,-535.19481169,0.00033698,3]
[310298251,1704463968180,-1575.41,0.00033698,3]
[310298252,1704463968189,-982.39,0.00033698,3]
[310298253,1704463968198,-500.39,0.00033698,3]
[310298254,1704463968207,-500.0,0.00033698,3]
[310298255,1704463968216,-500.0,0.00033698,3]
[310298256,1704463968226,-616.4,0.00033698,3]
[310298257,1704463968235,-656.28,0.00033698,3]
[310298258,1704463968244,-615.45,0.00033698,3]
[310298259,1704463968254,-815.67,0.00033698,3]
[310298260,1704463968263,-855.97,0.00033698,3]
[310298261,1704463968272,-914.92,0.00033698,3]
[310298262,1704463968282,-759.49,0.00033698,3]
[310298263,1704463968291,-612.52,0.00033698,3]
[310298264,1704463968300,-500.0,0.00033698,3]
[310298265,1704463968310,-638.72,0.00033698,3]
[310298266,1704463968319,-500.0,0.00033698,3]
[310298267,1704463968328,-779.76,0.00033698,3]
[310298268,1704463968338,-1184.83,0.00033698,3]
[310298269,1704463968347,-547.36,0.00033698,3]
[310298270,1704463968356,-1087.44,0.00033698,3]
[310298271,1704463968366,-500.0,0.00033698,3]
[310298272,1704463968375,-908.56,0.00033698,3]
[310298273,1704463968384,-500.0,0.00033698,3]
[310298274,1704463968393,-500.0,0.00033698,3]
[310298275,1704463968403,-5038.11,0.00033698,3]
[310298276,1704463968413,-880.69,0.00033698,3]
[310298277,1704463968422,-884.22,0.00033698,3]
[310298278,1704463968431,-500.0,0.00033698,3]
[310298279,1704463968441,-828.3,0.00033698,3]
[310298280,1704463968450,-500.0,0.00033698,3]
[310298281,1704463968459,-1954.72,0.00033698,3]
[310298282,1704463968469,-500.0,0.00033698,3]
[310298283,1704463968479,-500.0,0.00033698,3]
[310298284,1704463968488,-964.87,0.00033698,3]
[310298285,1704463968498,-500.0,0.00033698,3]
[310298286,1704463968507,-1145.56,0.00033698,3]
[310298287,1704463968516,-1200.04,0.00033698,3]
[310298288,1704463968525,-794.58,0.00033698,3]
[310298289,1704463968535,-855.41,0.00033698,3]
[310298290,1704463968544,-534.82,0.00033698,3]
[310298291,1704463968554,-773.85,0.00033698,3]
[310298292,1704463968563,-1238.16,0.00033698,3]
[310298293,1704463968572,-500.0,0.00033698,3]
[310298294,1704463968581,-500.0,0.00033698,3]
[310298295,1704463968593,-3690.73,0.00033698,3]
[310298296,1704463968693,-500.0,0.00033698,3]
[310298297,1704463968702,-692.03,0.00033698,3]
[310298298,1704463968711,-559.53,0.00033698,3]
[310298299,1704463968721,-500.0,0.00033698,3]
[310298300,1704463968730,-500.0,0.00033698,3]
[310298301,1704463968738,-500.0,0.00033698,3]
[310298302,1704463968747,-654.46,0.00033698,3]
[310298303,1704463968757,-954.52,0.00033698,3]
[310298304,1704463968766,-763.63,0.00033698,3]
[310298305,1704463968775,-1216.82,0.00033698,3]
[310298306,1704463968785,-876.69,0.00033698,3]
[310298307,1704463968794,-511.23,0.00033698,3]
[310298308,1704463968804,-1777.29,0.00033698,3]
[310298309,1704463968814,-813.3,0.00033698,3]
[310298310,1704463968822,-1082.13,0.00033698,3]
[310298311,1704463968831,-677.81,0.00033698,3]
[310298312,1704463968841,-1325.23,0.00033698,3]
[310298313,1704463968851,-500.0,0.00033698,3]
[310298314,1704463968860,-3298.71,0.00033698,3]
[310298315,1704463968870,-500.0,0.00033698,3]
[310298316,1704463968879,-798.97,0.00033698,3]
[310298317,1704463968888,-500.0,0.00033698,3]
[310298318,1704463968897,-500.0,0.00033698,3]
[310298319,1704463968907,-900.8,0.00033698,3]
[310298320,1704463968916,-500.0,0.00033698,3]
[310298321,1704463968925,-1067.2,0.00033698,3]
[310298322,1704463968934,-2016.59,0.00033698,3]
[310298323,1704463968943,-752.23,0.00033698,3]
[310298324,1704463968952,-811.52,0.00033698,3]
[310298325,1704463968961,-1251.67,0.00033698,3]
[310298326,1704463968969,-500.0,0.00033698,3]
[310298327,1704463968978,-8654.29,0.00033698,3]
[310298328,1704463968988,-909.25,0.00033698,3]
[310298329,1704463968997,-952.02,0.00033698,3]
[310298330,1704463969006,-500.0,0.00033698,3]
[310298331,1704463969015,-963.43,0.00033698,3]
[310298332,1704463969024,-2290.16,0.00033698,3]
[310298333,1704463969033,-152.08,0.00033698,3]
[310298334,1704463969042,-511.88,0.00033698,3]
[310298335,1704463969052,-1293.97,0.00033698,3]
[310298336,1704463969061,-5023.74,0.00033698,3]
[310298337,1704463969070,-960.97,0.00033698,3]
[310298338,1704463969079,-1316.73,0.00033698,3]
[310298339,1704463969091,-500.0,0.00033698,3]
[310298340,1704463969100,-2888.44,0.00033698,3]
[310298341,1704463969109,-780.49,0.00033698,3]
[310298342,1704463969119,-213.57,0.00033698,3]
[310298343,1704463969129,-873.53,0.00033698,3]
[310298344,1704463969138,-840.85,0.00033698,3]
[310298345,1704463969148,-500.0,0.00033698,3]
[310298346,1704463969157,-552.42,0.00033698,3]
[310298347,1704463969167,-17362.55,0.00033698,3]
[310298348,1704463969176,-2346.84,0.00033698,3]
[310298349,1704463969185,-4809.34,0.00033698,3]
[310298350,1704463969196,-607.5,0.00033698,3]
[310298351,1704463969205,-619.58,0.00033698,3]
[310298352,1704463969215,-539.06,0.00033698,3]
[310298353,1704463969225,-592.26780028,0.00033698,3]
[310298354,1704463969234,-500.0,0.00033698,3]
[310298355,1704463969244,-9463.24,0.00033698,3]
[310298356,1704463969253,-4907.15,0.00033698,3]
[310298357,1704463969262,-500.0,0.00033698,3]
[310298358,1704463969271,-4324.26,0.00033698,3]
[310298359,1704463969280,-2724.92,0.00033698,3]
[310298360,1704463969290,-11882.1,0.00033698,3]
[310298361,1704463969299,-746.12,0.00033698,3]
[310298362,1704463969309,-845.63,0.00033698,3]
[310298363,1704463969319,-500.0,0.00033698,3]
[310298364,1704463969328,-500.0,0.00033698,3]
[310298365,1704463969338,-3292.08,0.00033698,3]
[310298366,1704463969347,-500.0,0.00033698,3]
[310298367,1704463969357,-644.83,0.00033698,3]
[310298368,1704463969366,-918.77,0.00033698,3]
[310298369,1704463969376,-534.57907498,0.00033698,3]
[310298370,1704463969385,-1395.08,0.00033698,3]
[310298371,1704463969395,-3344.35,0.00033698,3]
[310298372,1704463969404,-500.0,0.00033698,3]
[310298373,1704463969413,-613.87,0.00033698,3]
[310298374,1704463969422,-1259.17,0.00033698,3]
[310298375,1704463969431,-500.0,0.00033698,3]
[310298376,1704463969441,-2954.54,0.00033698,3]
[310298377,1704463969450,-2366.41,0.00033698,3]
[310298378,1704463969459,-737.12,0.00033698,3]
[310298379,1704463969468,-500.0,0.00033698,3]
[310298380,1704463969478,-5440.99,0.00033698,3]
[310298381,1704463969488,-3361.08,0.00033698,3]
[310298382,1704463969498,-1558.45,0.00033698,3]
[310298383,1704463969508,-500.0,0.00033698,3]
[310298384,1704463969517,-1062.83,0.00033698,3]
[310298385,1704463969526,-812.59,0.00033698,3]
[310298386,1704463969536,-646.75,0.00033698,3]
[310298387,1704463969545,-1323.29,0.00033698,3]
[310298388,1704463969555,-500.0,0.00033698,3]
[310298389,1704463969564,-16516.01,0.00033698,3]
[310298390,1704463969573,-747.13,0.00033698,3]
[310298391,1704463969582,-8220.31,0.00033698,3]
[310298392,1704463969593,-1218.24,0.00033698,3]
[310298393,1704463969602,-678.9,0.00033698,3]
[310298394,1704463969611,-509.33,0.00033698,3]
[310298395,1704463969621,-625.64,0.00033698,3]
[310298396,1704463969630,-1093.85,0.00033698,3]
[310298397,1704463969641,-500.0,0.00033698,3]
[310298398,1704463969651,-1229.71,0.00033698,3]
[310298399,1704463969663,-528.93,0.00033698,3]
[310298400,1704463969672,-500.0,0.00033698,3]
[310298401,1704463969682,-500.0,0.00033698,3]
[310298402,1704463969691,-696.27,0.00033698,3]
[310298403,1704463969701,-500.0,0.00033698,3]
[310298404,1704463969710,-1228.93,0.00033698,3]
[310298405,1704463969719,-500.0,0.00033698,3]
[310298406,1704463969728,-906.38,0.00033698,3]
[310298407,1704463969737,-500.0,0.00033698,3]
[310298408,1704463969746,-1479.47,0.00033698,3]
[310298409,1704463969755,-1060.36,0.00033698,3]
[310298410,1704463969765,-1559.68,0.00033698,3]
[310298411,1704463969774,-500.0,0.00033698,3]
[310298412,1704463969783,-1024.05,0.00033698,3]
[310298413,1704463969792,-535.98,0.00033698,3]
[310298414,1704463969801,-732.24,0.00033698,3]
[310298415,1704463969810,-20552.87,0.00033698,3]
[310298416,1704463969820,-764.89,0.00033698,3]
[310298417,1704463969829,-1384.47,0.00033698,3]
[310298418,1704463969840,-2343.7,0.00033698,3]
[310298419,1704463969850,-500.0,0.00033698,3]
[310298420,1704463969859,-855.82,0.00033698,3]
[310298421,1704463969869,-1443.03,0.00033698,3]
[310298422,1704463969878,-1467.75,0.00033698,3]
[310298423,1704463969887,-2427.76,0.00033698,3]
[310298424,1704463969896,-500.0,0.00033698,3]
[310298425,1704463969910,-500.0,0.00033698,3]
[310298426,1704463969919,-1262.81,0.00033698,3]
[310298427,1704463969929,-976.69,0.00033698,3]
[310298428,1704463969938,-1404.49,0.00033698,3]
[310298429,1704463969948,-963.68,0.00033698,3]
[310298430,1704463969958,-502.15,0.00033698,3]
[310298431,1704463969966,-1710.42,0.00033698,3]
[310298432,1704463969975,-1043.98,0.00033698,3]
[310298433,1704463969984,-500.0,0.00033698,3]
[310298434,1704463969993,-827.77,0.00033698,3]
[310298435,1704463970002,-500.0,0.00033698,3]
[310298436,1704463970011,-670.86,0.00033698,3]
[310298437,1704463970020,-552.27,0.00033698,3]
[310298438,1704463970030,-2031.67,0.00033698,3]
[310298439,1704463970039,-593.61,0.00033698,3]
[310298440,1704463970049,-7439.39,0.00033698,3]
[310298441,1704463970059,-737.13,0.00033698,3]
[310298442,1704463970069,-973.07,0.00033698,3]
[310298443,1704463970078,-563.27,0.00033698,3]
[310298444,1704463970089,-585.98,0.00033698,3]
[310298445,1704463970099,-500.0,0.00033698,3]
[310298446,1704463970110,-500.0,0.00033698,3]
[310298447,1704463970119,-878.72,0.00033698,3]
[310298448,1704463970128,-1022.6,0.00033698,3]
[310298449,1704463970137,-500.0,0.00033698,3]
[310298450,1704463970146,-1959.09,0.00033698,3]
[310298451,1704463970156,-732.57,0.00033698,3]
[310298452,1704463970165,-11053.17,0.00033698,3]
[310298453,1704463970174,-757.66,0.00033698,3]
[310298454,1704463970184,-500.0,0.00033698,3]
[310298455,1704463970193,-511.54,0.00033698,3]